Department family,Entity,Date,Expense Type,Expense area,Supplier,Transaction number,AP Amount (�)
Department of Health,NHS Barnsley CCG,30/06/2019,C&M-GMS LES Medicine Management,COMMISSIONING SCHEMES,NHS BARNSLEY CCG GP PRACTICE,27718203,"66,324.50"
Department of Health,NHS Barnsley CCG,30/06/2019,C&M-APMS LES GP Comm Incentive Sch,COMMISSIONING SCHEMES,NHS BARNSLEY CCG GP PRACTICE,27856373,"20,789.42"
Department of Health,NHS Barnsley CCG,30/06/2019,C&M-PMS LES Referral Management,COMMISSIONING SCHEMES,NHS BARNSLEY CCG GP PRACTICE,27856373,"20,411.43"
Department of Health,NHS Barnsley CCG,30/06/2019,Clinical&Medical-Clinical Other,COMMISSIONING SCHEMES,NHS BARNSLEY CCG GP PRACTICE,27856373,"21,802.43"
Department of Health,NHS Barnsley CCG,30/06/2019,Clinical&Medical-Commercial Sector,PRIMARY CARE DEVELOPMENT,BARNSLEY HEALTHCARE FEDERATION,27553877,"268,099.00"
Department of Health,NHS Barnsley CCG,30/06/2019,C&M-APMS Contract Value,PRC DELEGATED CO-COMMISSIONING,BARNSLEY HEALTHCARE FEDERATION,27604666,"31,688.17"
Department of Health,NHS Barnsley CCG,30/06/2019,C&M-APMS OOH Opt Outs,PRC DELEGATED CO-COMMISSIONING,BARNSLEY HEALTHCARE FEDERATION,27604666,1.76
Department of Health,NHS Barnsley CCG,30/06/2019,C&M-APMS Prem Actual Rent,PRC DELEGATED CO-COMMISSIONING,BARNSLEY HEALTHCARE FEDERATION,27604666,"2,150.00"
Department of Health,NHS Barnsley CCG,30/06/2019,C&M-APMS Prem Healthcentre Rent,PRC DELEGATED CO-COMMISSIONING,BARNSLEY HEALTHCARE FEDERATION,27604666,"7,923.17"
Department of Health,NHS Barnsley CCG,30/06/2019,C&M-APMS Prem Rates,PRC DELEGATED CO-COMMISSIONING,BARNSLEY HEALTHCARE FEDERATION,27604666,503.00
Department of Health,NHS Barnsley CCG,30/06/2019,C&M-PMS QOF Achievement,PRC DELEGATED CO-COMMISSIONING,BARNSLEY HEALTHCARE FEDERATION,27604666,"7,696.89"
Department of Health,NHS Barnsley CCG,30/06/2019,C&M-PMS QOF Aspiration,PRC DELEGATED CO-COMMISSIONING,BARNSLEY HEALTHCARE FEDERATION,27604666,"2,244.77"
Department of Health,NHS Barnsley CCG,30/06/2019,C&M-APMS Contract Value,PRC DELEGATED CO-COMMISSIONING,BARNSLEY HEALTHCARE FEDERATION,27604668,"28,318.45"
Department of Health,NHS Barnsley CCG,30/06/2019,C&M-APMS Prem Actual Rent,PRC DELEGATED CO-COMMISSIONING,BARNSLEY HEALTHCARE FEDERATION,27604668,"6,200.00"
Department of Health,NHS Barnsley CCG,30/06/2019,C&M-APMS Prem Rates,PRC DELEGATED CO-COMMISSIONING,BARNSLEY HEALTHCARE FEDERATION,27604668,"1,235.00"
Department of Health,NHS Barnsley CCG,30/06/2019,C&M-PMS QOF Achievement,PRC DELEGATED CO-COMMISSIONING,BARNSLEY HEALTHCARE FEDERATION,27604668,"8,113.04"
Department of Health,NHS Barnsley CCG,30/06/2019,C&M-PMS QOF Aspiration,PRC DELEGATED CO-COMMISSIONING,BARNSLEY HEALTHCARE FEDERATION,27604668,"2,495.50"
Department of Health,NHS Barnsley CCG,30/06/2019,C&M-APMS Contract Value,PRC DELEGATED CO-COMMISSIONING,BARNSLEY HEALTHCARE FEDERATION,27625011,"27,042.58"
Department of Health,NHS Barnsley CCG,30/06/2019,C&M-APMS OOH Opt Outs,PRC DELEGATED CO-COMMISSIONING,BARNSLEY HEALTHCARE FEDERATION,27625011,9.61
Department of Health,NHS Barnsley CCG,30/06/2019,C&M-APMS Prem Actual Rent,PRC DELEGATED CO-COMMISSIONING,BARNSLEY HEALTHCARE FEDERATION,27625011,"1,310.42"
Department of Health,NHS Barnsley CCG,30/06/2019,C&M-APMS Prem Rates,PRC DELEGATED CO-COMMISSIONING,BARNSLEY HEALTHCARE FEDERATION,27625011,500.00
Department of Health,NHS Barnsley CCG,30/06/2019,C&M-APMS QOF Achievement,PRC DELEGATED CO-COMMISSIONING,BARNSLEY HEALTHCARE FEDERATION,27625011,"10,491.61"
Department of Health,NHS Barnsley CCG,30/06/2019,C&M-APMS QOF Aspiration,PRC DELEGATED CO-COMMISSIONING,BARNSLEY HEALTHCARE FEDERATION,27625011,"2,347.18"
Department of Health,NHS Barnsley CCG,30/06/2019,C&M-PMS Prem Water Rates,PRC DELEGATED CO-COMMISSIONING,BARNSLEY HEALTHCARE FEDERATION,27625011,238.68
Department of Health,NHS Barnsley CCG,30/06/2019,C&M-GP PRACTICE REVENUE - PCTF,GP FORWARD VIEW,BARNSLEY HEALTHCARE FEDERATION,27802795,"140,527.50"
Department of Health,NHS Barnsley CCG,30/06/2019,C&M-PMS Practice Transformational Support,COMMISSIONING SCHEMES,BARNSLEY HEALTHCARE FEDERATION,27802801,"54,166.67"
Department of Health,NHS Barnsley CCG,30/06/2019,Clinical&Medical-Commercial Sector,OUT OF HOURS,BARNSLEY HEALTHCARE FEDERATION,27802805,"165,630.10"
Department of Health,NHS Barnsley CCG,30/06/2019,C&M-PMS Contract Value,PRC DELEGATED CO-COMMISSIONING,BARNSLEY HEALTHCARE FEDERATION CIC (GOLDTHORPE),27606731,"41,822.39"
Department of Health,NHS Barnsley CCG,30/06/2019,C&M-PMS Prem Healthcentre Rent,PRC DELEGATED CO-COMMISSIONING,BARNSLEY HEALTHCARE FEDERATION CIC (GOLDTHORPE),27606731,"12,668.95"
Department of Health,NHS Barnsley CCG,30/06/2019,C&M-PMS QOF Aspiration,PRC DELEGATED CO-COMMISSIONING,BARNSLEY HEALTHCARE FEDERATION CIC (GOLDTHORPE),27606731,"3,008.69"
Department of Health,NHS Barnsley CCG,30/06/2019,C&M-GMS LES Medicine Management,COMMISSIONING SCHEMES,BARNSLEY HEALTHCARE FEDERATION CIC (GOLDTHORPE),27679219,"26,798.00"
Department of Health,NHS Barnsley CCG,30/06/2019,Clinical&Medical-Voluntary Sector,HOSPICES,BARNSLEY HOSPICE,27856338,"378,965.50"
Department of Health,NHS Barnsley CCG,30/06/2019,Hcare Srv Rec Fdtn Trust-Contract Baseline,ACUTE COMMISSIONING,BARNSLEY HOSPITAL NHS FOUNDATION TRUST,27522287,"90,000.00"
Department of Health,NHS Barnsley CCG,30/06/2019,Hcare Srv Rec Fdtn Trust-Contract Baseline,INTERMEDIATE CARE,BARNSLEY HOSPITAL NHS FOUNDATION TRUST,27522288,"227,319.00"
Department of Health,NHS Barnsley CCG,30/06/2019,Hcare Srv Rec Fdtn Trust-Contract Baseline,LONG TERM CONDITIONS,BARNSLEY HOSPITAL NHS FOUNDATION TRUST,27522288,"159,065.00"
Department of Health,NHS Barnsley CCG,30/06/2019,Hcare Srv Rec Fdtn Trust-Contract Baseline,ACUTE COMMISSIONING,BARNSLEY HOSPITAL NHS FOUNDATION TRUST,27522289,"595,384.00"
Department of Health,NHS Barnsley CCG,30/06/2019,Hcare Srv Rec Fdtn Trust-Contract Baseline,ACUTE COMMISSIONING,BARNSLEY HOSPITAL NHS FOUNDATION TRUST,27522290,"13,100,226.00"
Department of Health,NHS Barnsley CCG,30/06/2019,Hcare Srv Rec Fdtn Trust-Contract Baseline,COMMUNITY SERVICES,BARNSLEY HOSPITAL NHS FOUNDATION TRUST,27575447,"29,250.00"
Department of Health,NHS Barnsley CCG,31/05/2019,Hcare Srv Rec Fdtn Trust-Contract Baseline,ACUTE COMMISSIONING,BARNSLEY HOSPITAL NHS FOUNDATION TRUST,27293623,"68,000.00"
Department of Health,NHS Barnsley CCG,30/06/2019,Cont Care- Prior Year Payments,CHC AD FULL FUND PERS HLTH BUD,BARNSLEY METROPOLITAN BOROUGH COUNCIL,27553842,"705,641.49"
Department of Health,NHS Barnsley CCG,30/06/2019,Cont Care- Prior Year Payments,CHC AD JNT FUND PERS HLTH BUD,BARNSLEY METROPOLITAN BOROUGH COUNCIL,27553842,"132,425.94"
Department of Health,NHS Barnsley CCG,30/06/2019,Cont Care- Prior Year Payments,CHC ADULT FULLY FUNDED,BARNSLEY METROPOLITAN BOROUGH COUNCIL,27553842,"115,160.79"
Department of Health,NHS Barnsley CCG,30/06/2019,Cont Care- Prior Year Payments,CHC ADULT JOINT FUNDED,BARNSLEY METROPOLITAN BOROUGH COUNCIL,27553842,"139,446.23"
Department of Health,NHS Barnsley CCG,30/06/2019,Cont Care-Funded Nursing Care Allow,FUNDED NURSING CARE,BARNSLEY METROPOLITAN BOROUGH COUNCIL,27553844,"128,493.95"
Department of Health,NHS Barnsley CCG,30/06/2019,Cont Care-Interim Funding(Pre Panel),CHC ADULT FULLY FUNDED,BARNSLEY METROPOLITAN BOROUGH COUNCIL,27553844,"1,197.50"
Department of Health,NHS Barnsley CCG,30/06/2019,Cont Care-Interim Funding(Pre Panel),FUNDED NURSING CARE,BARNSLEY METROPOLITAN BOROUGH COUNCIL,27553844,"2,033.49"
Department of Health,NHS Barnsley CCG,30/06/2019,Clinical&Medical-Othe Public Sector,Learning Difficulties - S117,BARNSLEY METROPOLITAN BOROUGH COUNCIL,27757259,"109,110.85"
Department of Health,NHS Barnsley CCG,30/06/2019,Clinical&Medical-Othe Public Sector,Learning Difficulties - S117,BARNSLEY METROPOLITAN BOROUGH COUNCIL,27758116,"-54,555.43"
Department of Health,NHS Barnsley CCG,30/06/2019,Clinical&Medical-Othe Public Sector,Mental Health Services - S117 Mental Health,BARNSLEY METROPOLITAN BOROUGH COUNCIL,27758201,"-54,632.50"
Department of Health,NHS Barnsley CCG,30/06/2019,Clinical&Medical-Commercial Sector,ACUTE COMMISSIONING,BMI HEALTHCARE LTD,27553913,"29,370.48"
Department of Health,NHS Barnsley CCG,30/06/2019,Clinical&Medical-Voluntary Sector,CHILD AND ADOLESCENT MENTAL HEALTH,BRAIN IN HAND LTD,27767789,"50,682.00"
Department of Health,NHS Barnsley CCG,30/06/2019,C&M-GMS DES Extended Hours Access,PRC DELEGATED CO-COMMISSIONING,NHS BARNSLEY CCG GP PRACTICE,27825673,"5,351.35"
Department of Health,NHS Barnsley CCG,30/06/2019,C&M-GMS Global Sum,PRC DELEGATED CO-COMMISSIONING,NHS BARNSLEY CCG GP PRACTICE,27825673,"94,750.08"
Department of Health,NHS Barnsley CCG,30/06/2019,C&M-GMS PCO Seniority,PRC DELEGATED CO-COMMISSIONING,NHS BARNSLEY CCG GP PRACTICE,27825673,"1,349.11"
Department of Health,NHS Barnsley CCG,30/06/2019,C&M-GMS Prem Actual Rent,PRC DELEGATED CO-COMMISSIONING,NHS BARNSLEY CCG GP PRACTICE,27825673,"12,500.00"
Department of Health,NHS Barnsley CCG,30/06/2019,C&M-GMS Prem Healthcentre Rent,PRC DELEGATED CO-COMMISSIONING,NHS BARNSLEY CCG GP PRACTICE,27825673,"3,276.92"
Department of Health,NHS Barnsley CCG,30/06/2019,C&M-GMS QOF Achievement,PRC DELEGATED CO-COMMISSIONING,NHS BARNSLEY CCG GP PRACTICE,27825673,"43,489.81"
Department of Health,NHS Barnsley CCG,30/06/2019,C&M-GMS QOF Aspiration,PRC DELEGATED CO-COMMISSIONING,NHS BARNSLEY CCG GP PRACTICE,27825673,"9,600.36"
Department of Health,NHS Barnsley CCG,30/06/2019,C&M-APMS LES GP Comm Incentive Sch,COMMISSIONING SCHEMES,NHS BARNSLEY CCG GP PRACTICE,27856281,"20,492.25"
Department of Health,NHS Barnsley CCG,30/06/2019,C&M-PMS LES Referral Management,COMMISSIONING SCHEMES,NHS BARNSLEY CCG GP PRACTICE,27856281,"20,119.66"
Department of Health,NHS Barnsley CCG,30/06/2019,Clinical&Medical-Clinical Other,COMMISSIONING SCHEMES,NHS BARNSLEY CCG GP PRACTICE,27856281,"22,563.82"
Department of Health,NHS Barnsley CCG,30/06/2019,Cont Care- Prior Year Payments,CHC ADULT FULLY FUNDED,BYRON LODGE NURSING HOME,27553929,"18,437.14"
Department of Health,NHS Barnsley CCG,30/06/2019,Cont Care-Mental Health (65+),CHC ADULT FULLY FUNDED,BYRON LODGE NURSING HOME,27553929,"11,754.86"
Department of Health,NHS Barnsley CCG,30/06/2019,Clinical&Medical-Commercial Sector,ACUTE COMMISSIONING,CLAREMONT HOSPITAL,27639544,"33,040.00"
Department of Health,NHS Barnsley CCG,30/06/2019,Voids and Subsidies,RECHARGES NHS PROPERTY SERVICES LTD,COMMUNITY HEALTH PARTNERSHIPS LTD,27639460,"53,033.71"
Department of Health,NHS Barnsley CCG,31/05/2019,Voids and Subsidies,RECHARGES NHS PROPERTY SERVICES LTD,COMMUNITY HEALTH PARTNERSHIPS LTD,27293637,"53,033.71"
Department of Health,NHS Barnsley CCG,30/06/2019,Soc Care-Bed-Based Int Care Servs,INTERMEDIATE CARE,CROWN CARE (IV) LTD,27575453,"25,928.57"
Department of Health,NHS Barnsley CCG,30/06/2019,Soc Care-Bed-Based Int Care Servs,INTERMEDIATE CARE,CROWN CARE (IV) LTD,27575454,"26,792.86"
Department of Health,NHS Barnsley CCG,30/06/2019,Clinical&Medical-Commercial Sector,LEARNING DIFFICULTIES,DANSHELL HEALTHCARE LTD,27802587,"26,784.00"
Department of Health,NHS Barnsley CCG,30/06/2019,C&M-GMS LES Medicine Management,COMMISSIONING SCHEMES,NHS BARNSLEY CCG GP PRACTICE,27679187,"57,201.00"
Department of Health,NHS Barnsley CCG,30/06/2019,C&M-GMS DES Extended Hours Access,PRC DELEGATED CO-COMMISSIONING,NHS BARNSLEY CCG GP PRACTICE,27822984,"4,878.25"
Department of Health,NHS Barnsley CCG,30/06/2019,C&M-GMS DES Learn Dsblty Hlth Chk,PRC DELEGATED CO-COMMISSIONING,NHS BARNSLEY CCG GP PRACTICE,27822984,"3,920.00"
Department of Health,NHS Barnsley CCG,30/06/2019,C&M-GMS Global Sum,PRC DELEGATED CO-COMMISSIONING,NHS BARNSLEY CCG GP PRACTICE,27822984,"85,612.96"
Department of Health,NHS Barnsley CCG,30/06/2019,C&M-GMS PCO Other,PRC DELEGATED CO-COMMISSIONING,NHS BARNSLEY CCG GP PRACTICE,27822984,"6,336.00"
Department of Health,NHS Barnsley CCG,30/06/2019,C&M-GMS PCO Seniority,PRC DELEGATED CO-COMMISSIONING,NHS BARNSLEY CCG GP PRACTICE,27822984,337.04
Department of Health,NHS Barnsley CCG,30/06/2019,C&M-GMS Prem Healthcentre Rent,PRC DELEGATED CO-COMMISSIONING,NHS BARNSLEY CCG GP PRACTICE,27822984,"27,043.66"
Department of Health,NHS Barnsley CCG,30/06/2019,C&M-GMS QOF Achievement,PRC DELEGATED CO-COMMISSIONING,NHS BARNSLEY CCG GP PRACTICE,27822984,"37,609.97"
Department of Health,NHS Barnsley CCG,30/06/2019,C&M-GMS QOF Aspiration,PRC DELEGATED CO-COMMISSIONING,NHS BARNSLEY CCG GP PRACTICE,27822984,"8,149.07"
Department of Health,NHS Barnsley CCG,30/06/2019,C&M-APMS LES GP Comm Incentive Sch,COMMISSIONING SCHEMES,NHS BARNSLEY CCG GP PRACTICE,27856366,"7,349.33"
Department of Health,NHS Barnsley CCG,30/06/2019,C&M-PMS LES Referral Management,COMMISSIONING SCHEMES,NHS BARNSLEY CCG GP PRACTICE,27856366,"17,796.57"
Department of Health,NHS Barnsley CCG,30/06/2019,Clinical&Medical-Clinical Other,COMMISSIONING SCHEMES,NHS BARNSLEY CCG GP PRACTICE,27856366,"18,126.13"
Department of Health,NHS Barnsley CCG,30/06/2019,Cont Care-Physical Disab (<65),CHC ADULT FULLY FUNDED,NHS BARNSLEY CCG GP PRACTICE,27757032,"28,418.39"
Department of Health,NHS Barnsley CCG,31/05/2019,Hcare Srv Rec Fdtn Trust-CQUIN,ACUTE COMMISSIONING,DONCASTER AND BASSETLAW HOSPITALS NHS FOUNDATION TRUST,27334755,"2,483.00"
Department of Health,NHS Barnsley CCG,31/05/2019,Hcare Srv Rec Fdtn Trust-Contract Baseline,ACUTE COMMISSIONING,DONCASTER AND BASSETLAW HOSPITALS NHS FOUNDATION TRUST,27334755,"432,508.00"
Department of Health,NHS Barnsley CCG,30/06/2019,Cont Care- Prior Year Payments,CHC ADULT JOINT FUNDED,DONCASTER METROPOLITAN BOROUGH COUNCIL,27611308,"47,547.15"
Department of Health,NHS Barnsley CCG,30/06/2019,C&M-PMS Contract Value,PRC DELEGATED CO-COMMISSIONING,NHS BARNSLEY CCG GP PRACTICE,27604641,"90,663.08"
Department of Health,NHS Barnsley CCG,30/06/2019,C&M-PMS DES Extended Hours Access,PRC DELEGATED CO-COMMISSIONING,NHS BARNSLEY CCG GP PRACTICE,27604641,"4,957.10"
Department of Health,NHS Barnsley CCG,30/06/2019,C&M-PMS Out of Hours Opt Outs,PRC DELEGATED CO-COMMISSIONING,NHS BARNSLEY CCG GP PRACTICE,27604641,11.93
Department of Health,NHS Barnsley CCG,30/06/2019,C&M-PMS PCO Other,PRC DELEGATED CO-COMMISSIONING,NHS BARNSLEY CCG GP PRACTICE,27604641,646.50
Department of Health,NHS Barnsley CCG,30/06/2019,C&M-PMS PCO Seniority,PRC DELEGATED CO-COMMISSIONING,NHS BARNSLEY CCG GP PRACTICE,27604641,973.31
Department of Health,NHS Barnsley CCG,30/06/2019,C&M-PMS Prem Healthcentre Rent,PRC DELEGATED CO-COMMISSIONING,NHS BARNSLEY CCG GP PRACTICE,27604641,"19,031.09"
Department of Health,NHS Barnsley CCG,30/06/2019,C&M-PMS Prem Notional Rent,PRC DELEGATED CO-COMMISSIONING,NHS BARNSLEY CCG GP PRACTICE,27604641,"1,987.50"
Department of Health,NHS Barnsley CCG,30/06/2019,C&M-PMS Prem Rates,PRC DELEGATED CO-COMMISSIONING,NHS BARNSLEY CCG GP PRACTICE,27604641,360.61
Department of Health,NHS Barnsley CCG,30/06/2019,C&M-PMS QOF Achievement,PRC DELEGATED CO-COMMISSIONING,NHS BARNSLEY CCG GP PRACTICE,27604641,"46,566.34"
Department of Health,NHS Barnsley CCG,30/06/2019,C&M-PMS QOF Aspiration,PRC DELEGATED CO-COMMISSIONING,NHS BARNSLEY CCG GP PRACTICE,27604641,"10,450.25"
Department of Health,NHS Barnsley CCG,30/06/2019,C&M-GMS LES Medicine Management,COMMISSIONING SCHEMES,NHS BARNSLEY CCG GP PRACTICE,27718185,"60,820.00"
Department of Health,NHS Barnsley CCG,30/06/2019,C&M-PMS Contract Value,PRC DELEGATED CO-COMMISSIONING,NHS BARNSLEY CCG GP PRACTICE,27604643,"17,815.25"
Department of Health,NHS Barnsley CCG,30/06/2019,C&M-PMS Out of Hours Opt Outs,PRC DELEGATED CO-COMMISSIONING,NHS BARNSLEY CCG GP PRACTICE,27604643,1.15
Department of Health,NHS Barnsley CCG,30/06/2019,C&M-PMS PCO Other,PRC DELEGATED CO-COMMISSIONING,NHS BARNSLEY CCG GP PRACTICE,27604643,172.70
Department of Health,NHS Barnsley CCG,30/06/2019,C&M-PMS Prem Actual Rent,PRC DELEGATED CO-COMMISSIONING,NHS BARNSLEY CCG GP PRACTICE,27604643,681.73
Department of Health,NHS Barnsley CCG,30/06/2019,C&M-PMS QOF Achievement,PRC DELEGATED CO-COMMISSIONING,NHS BARNSLEY CCG GP PRACTICE,27604643,"6,099.36"
Department of Health,NHS Barnsley CCG,30/06/2019,C&M-PMS QOF Aspiration,PRC DELEGATED CO-COMMISSIONING,NHS BARNSLEY CCG GP PRACTICE,27604643,"1,371.14"
Department of Health,NHS Barnsley CCG,30/06/2019,C&M-PMS Contract Value,PRC DELEGATED CO-COMMISSIONING,NHS BARNSLEY CCG GP PRACTICE,27604645,"55,146.01"
Department of Health,NHS Barnsley CCG,30/06/2019,C&M-PMS DES Extended Hours Access,PRC DELEGATED CO-COMMISSIONING,NHS BARNSLEY CCG GP PRACTICE,27604645,"3,398.15"
Department of Health,NHS Barnsley CCG,30/06/2019,C&M-PMS PCO Seniority,PRC DELEGATED CO-COMMISSIONING,NHS BARNSLEY CCG GP PRACTICE,27604645,"1,535.12"
Department of Health,NHS Barnsley CCG,30/06/2019,C&M-PMS Prem Healthcentre Rent,PRC DELEGATED CO-COMMISSIONING,NHS BARNSLEY CCG GP PRACTICE,27604645,"22,509.70"
Department of Health,NHS Barnsley CCG,30/06/2019,C&M-PMS QOF Achievement,PRC DELEGATED CO-COMMISSIONING,NHS BARNSLEY CCG GP PRACTICE,27604645,"25,405.96"
Department of Health,NHS Barnsley CCG,30/06/2019,C&M-PMS QOF Aspiration,PRC DELEGATED CO-COMMISSIONING,NHS BARNSLEY CCG GP PRACTICE,27604645,"5,320.13"
Department of Health,NHS Barnsley CCG,30/06/2019,C&M-GMS LES Medicine Management,COMMISSIONING SCHEMES,NHS BARNSLEY CCG GP PRACTICE,27679163,"35,195.00"
Department of Health,NHS Barnsley CCG,30/06/2019,C&M-GMS DES Extended Hours Access,PRC DELEGATED CO-COMMISSIONING,NHS BARNSLEY CCG GP PRACTICE,27822986,"4,709.63"
Department of Health,NHS Barnsley CCG,30/06/2019,C&M-GMS Global Sum,PRC DELEGATED CO-COMMISSIONING,NHS BARNSLEY CCG GP PRACTICE,27822986,"76,918.91"
Department of Health,NHS Barnsley CCG,30/06/2019,C&M-GMS PCO Other,PRC DELEGATED CO-COMMISSIONING,NHS BARNSLEY CCG GP PRACTICE,27822986,614.90
Department of Health,NHS Barnsley CCG,30/06/2019,C&M-GMS PCO Seniority,PRC DELEGATED CO-COMMISSIONING,NHS BARNSLEY CCG GP PRACTICE,27822986,"2,288.27"
Department of Health,NHS Barnsley CCG,30/06/2019,C&M-GMS Prem Notional Rent,PRC DELEGATED CO-COMMISSIONING,NHS BARNSLEY CCG GP PRACTICE,27822986,"4,658.33"
Department of Health,NHS Barnsley CCG,30/06/2019,C&M-GMS Prem Rates,PRC DELEGATED CO-COMMISSIONING,NHS BARNSLEY CCG GP PRACTICE,27822986,"1,318.00"
Department of Health,NHS Barnsley CCG,30/06/2019,C&M-GMS QOF Achievement,PRC DELEGATED CO-COMMISSIONING,NHS BARNSLEY CCG GP PRACTICE,27822986,"37,553.43"
Department of Health,NHS Barnsley CCG,30/06/2019,C&M-GMS QOF Aspiration,PRC DELEGATED CO-COMMISSIONING,NHS BARNSLEY CCG GP PRACTICE,27822986,"8,124.94"
Department of Health,NHS Barnsley CCG,30/06/2019,C&M-PMS GP Statutory Levy,PRC DELEGATED CO-COMMISSIONING,NHS BARNSLEY CCG GP PRACTICE,27604648,-570.77
Department of Health,NHS Barnsley CCG,30/06/2019,C&M-PMS Out of Hours Opt Outs,PRC DELEGATED CO-COMMISSIONING,NHS BARNSLEY CCG GP PRACTICE,27604648,"-6,398.57"
Department of Health,NHS Barnsley CCG,30/06/2019,C&M-PMS Voluntary Levy,PRC DELEGATED CO-COMMISSIONING,NHS BARNSLEY CCG GP PRACTICE,27604648,-99.88
Department of Health,NHS Barnsley CCG,30/06/2019,ME-PMS GP Pension EEs-PMS,PRC DELEGATED CO-COMMISSIONING,NHS BARNSLEY CCG GP PRACTICE,27604648,"-11,041.38"
Department of Health,NHS Barnsley CCG,30/06/2019,ME-PMS GP Pension ERs Adjs - PMS,PRC DELEGATED CO-COMMISSIONING,NHS BARNSLEY CCG GP PRACTICE,27604648,"-11,869.47"
Department of Health,NHS Barnsley CCG,30/06/2019,C&M-PMS Contract Value,PRC DELEGATED CO-COMMISSIONING,NHS BARNSLEY CCG GP PRACTICE,27604649,"135,717.64"
Department of Health,NHS Barnsley CCG,30/06/2019,C&M-PMS DES Extended Hours Access,PRC DELEGATED CO-COMMISSIONING,NHS BARNSLEY CCG GP PRACTICE,27604649,"8,133.43"
Department of Health,NHS Barnsley CCG,30/06/2019,C&M-PMS DES Learn Dsblty Hlth Chk,PRC DELEGATED CO-COMMISSIONING,NHS BARNSLEY CCG GP PRACTICE,27604649,700.00
Department of Health,NHS Barnsley CCG,30/06/2019,C&M-PMS PCO Seniority,PRC DELEGATED CO-COMMISSIONING,NHS BARNSLEY CCG GP PRACTICE,27604649,"2,162.07"
Department of Health,NHS Barnsley CCG,30/06/2019,C&M-PMS Prem Notional Rent,PRC DELEGATED CO-COMMISSIONING,NHS BARNSLEY CCG GP PRACTICE,27604649,"6,333.33"
Department of Health,NHS Barnsley CCG,30/06/2019,C&M-PMS Prem Rates,PRC DELEGATED CO-COMMISSIONING,NHS BARNSLEY CCG GP PRACTICE,27604649,"3,455.50"
Department of Health,NHS Barnsley CCG,30/06/2019,C&M-PMS QOF Achievement,PRC DELEGATED CO-COMMISSIONING,NHS BARNSLEY CCG GP PRACTICE,27604649,"63,738.92"
Department of Health,NHS Barnsley CCG,30/06/2019,C&M-PMS QOF Aspiration,PRC DELEGATED CO-COMMISSIONING,NHS BARNSLEY CCG GP PRACTICE,27604649,"13,813.79"
Department of Health,NHS Barnsley CCG,30/06/2019,C&M-PMS Cost of Drugs -Dispensing,LOCAL ENHANCED SERVICES,NHS BARNSLEY CCG GP PRACTICE,27850028,"-76,656.52"
Department of Health,NHS Barnsley CCG,30/06/2019,C&M-PMS Prsc Chrgs Cll&Rmttd by GPs,PRC DELEGATED CO-COMMISSIONING,NHS BARNSLEY CCG GP PRACTICE,27850028,"-4,770.00"
Department of Health,NHS Barnsley CCG,30/06/2019,C&M-PMS Cost of Drugs -Dispensing,LOCAL ENHANCED SERVICES,NHS BARNSLEY CCG GP PRACTICE,27850029,"152,846.24"
Department of Health,NHS Barnsley CCG,30/06/2019,C&M-PMS Prof fees Dispensing,PRC DELEGATED CO-COMMISSIONING,NHS BARNSLEY CCG GP PRACTICE,27850029,"26,923.16"
Department of Health,NHS Barnsley CCG,30/06/2019,C&M-PMS Prsc Chrgs Cll&Rmttd by GPs,LOCAL ENHANCED SERVICES,NHS BARNSLEY CCG GP PRACTICE,27850029,"4,770.00"
Department of Health,NHS Barnsley CCG,30/06/2019,C&M-GMS Global Sum,PRC DELEGATED CO-COMMISSIONING,NHS BARNSLEY CCG GP PRACTICE,27825675,"23,531.94"
Department of Health,NHS Barnsley CCG,30/06/2019,C&M-GMS MPIG Correction Factor,PRC DELEGATED CO-COMMISSIONING,NHS BARNSLEY CCG GP PRACTICE,27825675,202.40
Department of Health,NHS Barnsley CCG,30/06/2019,C&M-GMS PCO Other,PRC DELEGATED CO-COMMISSIONING,NHS BARNSLEY CCG GP PRACTICE,27825675,682.50
Department of Health,NHS Barnsley CCG,30/06/2019,C&M-GMS PCO Seniority,PRC DELEGATED CO-COMMISSIONING,NHS BARNSLEY CCG GP PRACTICE,27825675,667.65
Department of Health,NHS Barnsley CCG,30/06/2019,C&M-GMS Prem Healthcentre Rent,PRC DELEGATED CO-COMMISSIONING,NHS BARNSLEY CCG GP PRACTICE,27825675,"1,473.37"
Department of Health,NHS Barnsley CCG,30/06/2019,C&M-GMS QOF Achievement,PRC DELEGATED CO-COMMISSIONING,NHS BARNSLEY CCG GP PRACTICE,27825675,"14,199.31"
Department of Health,NHS Barnsley CCG,30/06/2019,C&M-GMS QOF Aspiration,PRC DELEGATED CO-COMMISSIONING,NHS BARNSLEY CCG GP PRACTICE,27825675,"2,460.63"
Department of Health,NHS Barnsley CCG,30/06/2019,C&M-GMS LES Medicine Management,COMMISSIONING SCHEMES,NHS BARNSLEY CCG GP PRACTICE,27718263,"28,073.00"
Department of Health,NHS Barnsley CCG,30/06/2019,C&M-GMS DES Learn Dsblty Hlth Chk,PRC DELEGATED CO-COMMISSIONING,NHS BARNSLEY CCG GP PRACTICE,27822988,980.00
Department of Health,NHS Barnsley CCG,30/06/2019,C&M-GMS Global Sum,PRC DELEGATED CO-COMMISSIONING,NHS BARNSLEY CCG GP PRACTICE,27822988,"41,982.39"
Department of Health,NHS Barnsley CCG,30/06/2019,C&M-GMS PCO Seniority,PRC DELEGATED CO-COMMISSIONING,NHS BARNSLEY CCG GP PRACTICE,27822988,306.35
Department of Health,NHS Barnsley CCG,30/06/2019,C&M-GMS Prem Notional Rent,PRC DELEGATED CO-COMMISSIONING,NHS BARNSLEY CCG GP PRACTICE,27822988,"1,681.25"
Department of Health,NHS Barnsley CCG,30/06/2019,C&M-GMS Prem Rates,PRC DELEGATED CO-COMMISSIONING,NHS BARNSLEY CCG GP PRACTICE,27822988,"1,502.00"
Department of Health,NHS Barnsley CCG,30/06/2019,C&M-GMS QOF Achievement,PRC DELEGATED CO-COMMISSIONING,NHS BARNSLEY CCG GP PRACTICE,27822988,"18,066.03"
Department of Health,NHS Barnsley CCG,30/06/2019,C&M-GMS QOF Aspiration,PRC DELEGATED CO-COMMISSIONING,NHS BARNSLEY CCG GP PRACTICE,27822988,"4,009.16"
Department of Health,NHS Barnsley CCG,30/06/2019,C&M-PMS Contract Value,PRC DELEGATED CO-COMMISSIONING,NHS BARNSLEY CCG GP PRACTICE,27604647,"39,002.92"
Department of Health,NHS Barnsley CCG,30/06/2019,C&M-PMS DES Extended Hours Access,PRC DELEGATED CO-COMMISSIONING,NHS BARNSLEY CCG GP PRACTICE,27604647,"2,136.55"
Department of Health,NHS Barnsley CCG,30/06/2019,C&M-PMS Out of Hours Opt Outs,PRC DELEGATED CO-COMMISSIONING,NHS BARNSLEY CCG GP PRACTICE,27604647,2.90
Department of Health,NHS Barnsley CCG,30/06/2019,C&M-PMS PCO Seniority,PRC DELEGATED CO-COMMISSIONING,NHS BARNSLEY CCG GP PRACTICE,27604647,883.57
Department of Health,NHS Barnsley CCG,30/06/2019,C&M-PMS Prem Healthcentre Rent,PRC DELEGATED CO-COMMISSIONING,NHS BARNSLEY CCG GP PRACTICE,27604647,"3,764.94"
Department of Health,NHS Barnsley CCG,30/06/2019,C&M-PMS Prem Notional Rent,PRC DELEGATED CO-COMMISSIONING,NHS BARNSLEY CCG GP PRACTICE,27604647,"8,808.34"
Department of Health,NHS Barnsley CCG,30/06/2019,C&M-PMS Prem Rates,PRC DELEGATED CO-COMMISSIONING,NHS BARNSLEY CCG GP PRACTICE,27604647,"1,550.59"
Department of Health,NHS Barnsley CCG,30/06/2019,C&M-PMS QOF Achievement,PRC DELEGATED CO-COMMISSIONING,NHS BARNSLEY CCG GP PRACTICE,27604647,"15,932.73"
Department of Health,NHS Barnsley CCG,30/06/2019,C&M-PMS QOF Aspiration,PRC DELEGATED CO-COMMISSIONING,NHS BARNSLEY CCG GP PRACTICE,27604647,"2,732.54"
Department of Health,NHS Barnsley CCG,30/06/2019,C&M-GMS LES Medicine Management,COMMISSIONING SCHEMES,NHS BARNSLEY CCG GP PRACTICE,27639358,"25,060.00"
Department of Health,NHS Barnsley CCG,30/06/2019,C&M-GMS DES Extended Hours Access,PRC DELEGATED CO-COMMISSIONING,NHS BARNSLEY CCG GP PRACTICE,27822994,"6,465.70"
Department of Health,NHS Barnsley CCG,30/06/2019,C&M-GMS Global Sum,PRC DELEGATED CO-COMMISSIONING,NHS BARNSLEY CCG GP PRACTICE,27822994,"109,429.18"
Department of Health,NHS Barnsley CCG,30/06/2019,C&M-GMS PCO Seniority,PRC DELEGATED CO-COMMISSIONING,NHS BARNSLEY CCG GP PRACTICE,27822994,"3,978.29"
Department of Health,NHS Barnsley CCG,30/06/2019,C&M-GMS Prem Notional Rent,PRC DELEGATED CO-COMMISSIONING,NHS BARNSLEY CCG GP PRACTICE,27822994,"7,297.17"
Department of Health,NHS Barnsley CCG,30/06/2019,C&M-GMS QOF Achievement,PRC DELEGATED CO-COMMISSIONING,NHS BARNSLEY CCG GP PRACTICE,27822994,"47,520.98"
Department of Health,NHS Barnsley CCG,30/06/2019,C&M-GMS QOF Aspiration,PRC DELEGATED CO-COMMISSIONING,NHS BARNSLEY CCG GP PRACTICE,27822994,"11,179.35"
Department of Health,NHS Barnsley CCG,30/06/2019,C&M-GMS LES Medicine Management,COMMISSIONING SCHEMES,NHS BARNSLEY CCG GP PRACTICE,27718288,"66,530.00"
Department of Health,NHS Barnsley CCG,30/06/2019,C&M-GMS DES Extended Hours Access,PRC DELEGATED CO-COMMISSIONING,NHS BARNSLEY CCG GP PRACTICE,27822990,"5,677.20"
Department of Health,NHS Barnsley CCG,30/06/2019,C&M-GMS Global Sum,PRC DELEGATED CO-COMMISSIONING,NHS BARNSLEY CCG GP PRACTICE,27822990,"98,097.42"
Department of Health,NHS Barnsley CCG,30/06/2019,C&M-GMS PCO Seniority,PRC DELEGATED CO-COMMISSIONING,NHS BARNSLEY CCG GP PRACTICE,27822990,"2,271.93"
Department of Health,NHS Barnsley CCG,30/06/2019,C&M-GMS Prem Notional Rent,PRC DELEGATED CO-COMMISSIONING,NHS BARNSLEY CCG GP PRACTICE,27822990,"13,593.75"
Department of Health,NHS Barnsley CCG,30/06/2019,C&M-GMS Prem Rates,PRC DELEGATED CO-COMMISSIONING,NHS BARNSLEY CCG GP PRACTICE,27822990,"3,093.54"
Department of Health,NHS Barnsley CCG,30/06/2019,C&M-GMS QOF Achievement,PRC DELEGATED CO-COMMISSIONING,NHS BARNSLEY CCG GP PRACTICE,27822990,"41,270.98"
Department of Health,NHS Barnsley CCG,30/06/2019,C&M-GMS QOF Aspiration,PRC DELEGATED CO-COMMISSIONING,NHS BARNSLEY CCG GP PRACTICE,27822990,"9,651.42"
Department of Health,NHS Barnsley CCG,30/06/2019,C&M-GMS DES Extended Hours Access,PRC DELEGATED CO-COMMISSIONING,NHS BARNSLEY CCG GP PRACTICE,27822992,"5,207.43"
Department of Health,NHS Barnsley CCG,30/06/2019,C&M-GMS Global Sum,PRC DELEGATED CO-COMMISSIONING,NHS BARNSLEY CCG GP PRACTICE,27822992,"95,912.74"
Department of Health,NHS Barnsley CCG,30/06/2019,C&M-GMS PCO Seniority,PRC DELEGATED CO-COMMISSIONING,NHS BARNSLEY CCG GP PRACTICE,27822992,"2,211.70"
Department of Health,NHS Barnsley CCG,30/06/2019,C&M-GMS Prem Healthcentre Rent,PRC DELEGATED CO-COMMISSIONING,NHS BARNSLEY CCG GP PRACTICE,27822992,"39,576.01"
Department of Health,NHS Barnsley CCG,30/06/2019,C&M-GMS QOF Achievement,PRC DELEGATED CO-COMMISSIONING,NHS BARNSLEY CCG GP PRACTICE,27822992,"46,653.04"
Department of Health,NHS Barnsley CCG,30/06/2019,C&M-GMS QOF Aspiration,PRC DELEGATED CO-COMMISSIONING,NHS BARNSLEY CCG GP PRACTICE,27822992,"9,168.58"
Department of Health,NHS Barnsley CCG,30/06/2019,C&M-GMS LES Medicine Management,COMMISSIONING SCHEMES,NHS BARNSLEY CCG GP PRACTICE,27718178,"56,168.00"
Department of Health,NHS Barnsley CCG,30/06/2019,C&M-GMS DES Extended Hours Access,PRC DELEGATED CO-COMMISSIONING,NHS BARNSLEY CCG GP PRACTICE,27822996,"4,962.33"
Department of Health,NHS Barnsley CCG,30/06/2019,C&M-GMS Global Sum,PRC DELEGATED CO-COMMISSIONING,NHS BARNSLEY CCG GP PRACTICE,27822996,"82,200.20"
Department of Health,NHS Barnsley CCG,30/06/2019,C&M-GMS PCO Other,PRC DELEGATED CO-COMMISSIONING,NHS BARNSLEY CCG GP PRACTICE,27822996,"1,932.60"
Department of Health,NHS Barnsley CCG,30/06/2019,C&M-GMS PCO Seniority,PRC DELEGATED CO-COMMISSIONING,NHS BARNSLEY CCG GP PRACTICE,27822996,959.16
Department of Health,NHS Barnsley CCG,30/06/2019,C&M-GMS Prem Rates,PRC DELEGATED CO-COMMISSIONING,NHS BARNSLEY CCG GP PRACTICE,27822996,"2,448.18"
Department of Health,NHS Barnsley CCG,30/06/2019,C&M-GMS QOF Achievement,PRC DELEGATED CO-COMMISSIONING,NHS BARNSLEY CCG GP PRACTICE,27822996,"43,897.27"
Department of Health,NHS Barnsley CCG,30/06/2019,C&M-GMS QOF Aspiration,PRC DELEGATED CO-COMMISSIONING,NHS BARNSLEY CCG GP PRACTICE,27822996,"10,284.96"
Department of Health,NHS Barnsley CCG,30/06/2019,C&M-PMS Contract Value,PRC DELEGATED CO-COMMISSIONING,NHS BARNSLEY CCG GP PRACTICE,27604650,"-1,118.30"
Department of Health,NHS Barnsley CCG,30/06/2019,C&M-PMS GP Statutory Levy,PRC DELEGATED CO-COMMISSIONING,NHS BARNSLEY CCG GP PRACTICE,27604650,-575.37
Department of Health,NHS Barnsley CCG,30/06/2019,C&M-PMS Out of Hours Opt Outs,PRC DELEGATED CO-COMMISSIONING,NHS BARNSLEY CCG GP PRACTICE,27604650,"-7,070.33"
Department of Health,NHS Barnsley CCG,30/06/2019,C&M-PMS Voluntary Levy,PRC DELEGATED CO-COMMISSIONING,NHS BARNSLEY CCG GP PRACTICE,27604650,-100.69
Department of Health,NHS Barnsley CCG,30/06/2019,ME - PMS TPS Added Years Adj EEs,PRC DELEGATED CO-COMMISSIONING,NHS BARNSLEY CCG GP PRACTICE,27604650,-346.67
Department of Health,NHS Barnsley CCG,30/06/2019,ME-PMS GP Pension EEs-PMS,PRC DELEGATED CO-COMMISSIONING,NHS BARNSLEY CCG GP PRACTICE,27604650,"-16,210.41"
Department of Health,NHS Barnsley CCG,30/06/2019,ME-PMS GP Pension ERs Adjs - PMS,PRC DELEGATED CO-COMMISSIONING,NHS BARNSLEY CCG GP PRACTICE,27604650,"-16,012.90"
Department of Health,NHS Barnsley CCG,30/06/2019,C&M-PMS Contract Value,PRC DELEGATED CO-COMMISSIONING,NHS BARNSLEY CCG GP PRACTICE,27604651,"145,558.92"
Department of Health,NHS Barnsley CCG,30/06/2019,C&M-PMS DES Extended Hours Access,PRC DELEGATED CO-COMMISSIONING,NHS BARNSLEY CCG GP PRACTICE,27604651,"8,198.98"
Department of Health,NHS Barnsley CCG,30/06/2019,C&M-PMS Out of Hours Opt Outs,PRC DELEGATED CO-COMMISSIONING,NHS BARNSLEY CCG GP PRACTICE,27604651,54.32
Department of Health,NHS Barnsley CCG,30/06/2019,C&M-PMS PCO Seniority,PRC DELEGATED CO-COMMISSIONING,NHS BARNSLEY CCG GP PRACTICE,27604651,"3,366.42"
Department of Health,NHS Barnsley CCG,30/06/2019,C&M-PMS Prem Notional Rent,PRC DELEGATED CO-COMMISSIONING,NHS BARNSLEY CCG GP PRACTICE,27604651,"11,741.66"
Department of Health,NHS Barnsley CCG,30/06/2019,C&M-PMS QOF Achievement,PRC DELEGATED CO-COMMISSIONING,NHS BARNSLEY CCG GP PRACTICE,27604651,"78,747.22"
Department of Health,NHS Barnsley CCG,30/06/2019,C&M-PMS QOF Aspiration,PRC DELEGATED CO-COMMISSIONING,NHS BARNSLEY CCG GP PRACTICE,27604651,"15,137.25"
Department of Health,NHS Barnsley CCG,30/06/2019,C&M-GMS LES Medicine Management,COMMISSIONING SCHEMES,NHS BARNSLEY CCG GP PRACTICE,27766485,"94,555.00"
Department of Health,NHS Barnsley CCG,30/06/2019,C&M-PMS Contract Value,PRC DELEGATED CO-COMMISSIONING,NHS BARNSLEY CCG GP PRACTICE,27604653,"101,464.56"
Department of Health,NHS Barnsley CCG,30/06/2019,C&M-PMS DES Extended Hours Access,PRC DELEGATED CO-COMMISSIONING,NHS BARNSLEY CCG GP PRACTICE,27604653,"5,664.85"
Department of Health,NHS Barnsley CCG,30/06/2019,C&M-PMS PCO Other,PRC DELEGATED CO-COMMISSIONING,NHS BARNSLEY CCG GP PRACTICE,27604653,726.40
Department of Health,NHS Barnsley CCG,30/06/2019,C&M-PMS PCO Seniority,PRC DELEGATED CO-COMMISSIONING,NHS BARNSLEY CCG GP PRACTICE,27604653,894.63
Department of Health,NHS Barnsley CCG,30/06/2019,C&M-PMS Prem Actual Rent,PRC DELEGATED CO-COMMISSIONING,NHS BARNSLEY CCG GP PRACTICE,27604653,"40,833.33"
Department of Health,NHS Barnsley CCG,30/06/2019,C&M-PMS Prem Rates,PRC DELEGATED CO-COMMISSIONING,NHS BARNSLEY CCG GP PRACTICE,27604653,"3,276.00"
Department of Health,NHS Barnsley CCG,30/06/2019,C&M-PMS Prem Water Rates,PRC DELEGATED CO-COMMISSIONING,NHS BARNSLEY CCG GP PRACTICE,27604653,"1,531.39"
Department of Health,NHS Barnsley CCG,30/06/2019,C&M-PMS QOF Achievement,PRC DELEGATED CO-COMMISSIONING,NHS BARNSLEY CCG GP PRACTICE,27604653,"51,794.08"
Department of Health,NHS Barnsley CCG,30/06/2019,C&M-PMS QOF Aspiration,PRC DELEGATED CO-COMMISSIONING,NHS BARNSLEY CCG GP PRACTICE,27604653,"10,812.71"
Department of Health,NHS Barnsley CCG,30/06/2019,C&M-PMS Contract Value,PRC DELEGATED CO-COMMISSIONING,NHS BARNSLEY CCG GP PRACTICE,27604655,"89,952.75"
Department of Health,NHS Barnsley CCG,30/06/2019,C&M-PMS DES Extended Hours Access,PRC DELEGATED CO-COMMISSIONING,NHS BARNSLEY CCG GP PRACTICE,27604655,"5,533.28"
Department of Health,NHS Barnsley CCG,30/06/2019,C&M-PMS PCO Seniority,PRC DELEGATED CO-COMMISSIONING,NHS BARNSLEY CCG GP PRACTICE,27604655,907.33
Department of Health,NHS Barnsley CCG,30/06/2019,C&M-PMS Prem Actual Rent,PRC DELEGATED CO-COMMISSIONING,NHS BARNSLEY CCG GP PRACTICE,27604655,"8,566.67"
Department of Health,NHS Barnsley CCG,30/06/2019,C&M-PMS QOF Achievement,PRC DELEGATED CO-COMMISSIONING,NHS BARNSLEY CCG GP PRACTICE,27604655,"35,743.00"
Department of Health,NHS Barnsley CCG,30/06/2019,C&M-PMS QOF Aspiration,PRC DELEGATED CO-COMMISSIONING,NHS BARNSLEY CCG GP PRACTICE,27604655,"7,216.95"
Department of Health,NHS Barnsley CCG,30/06/2019,C&M-APMS LES GP Comm Incentive Sch,COMMISSIONING SCHEMES,NHS BARNSLEY CCG GP PRACTICE,27856458,"18,521.12"
Department of Health,NHS Barnsley CCG,30/06/2019,C&M-PMS LES Referral Management,COMMISSIONING SCHEMES,NHS BARNSLEY CCG GP PRACTICE,27856458,"18,184.37"
Department of Health,NHS Barnsley CCG,30/06/2019,Clinical&Medical-Clinical Other,COMMISSIONING SCHEMES,NHS BARNSLEY CCG GP PRACTICE,27856458,"-2,384.18"
Department of Health,NHS Barnsley CCG,30/06/2019,C&M-GMS LES Medicine Management,COMMISSIONING SCHEMES,NHS BARNSLEY CCG GP PRACTICE,27718240,"40,740.50"
Department of Health,NHS Barnsley CCG,30/06/2019,C&M-GMS DES Extended Hours Access,PRC DELEGATED CO-COMMISSIONING,NHS BARNSLEY CCG GP PRACTICE,27822998,"3,207.20"
Department of Health,NHS Barnsley CCG,30/06/2019,C&M-GMS DES Learn Dsblty Hlth Chk,PRC DELEGATED CO-COMMISSIONING,NHS BARNSLEY CCG GP PRACTICE,27822998,"1,540.00"
Department of Health,NHS Barnsley CCG,30/06/2019,C&M-GMS Global Sum,PRC DELEGATED CO-COMMISSIONING,NHS BARNSLEY CCG GP PRACTICE,27822998,"57,625.44"
Department of Health,NHS Barnsley CCG,30/06/2019,C&M-GMS PCO Seniority,PRC DELEGATED CO-COMMISSIONING,NHS BARNSLEY CCG GP PRACTICE,27822998,692.35
Department of Health,NHS Barnsley CCG,30/06/2019,C&M-GMS Prem Healthcentre Rent,PRC DELEGATED CO-COMMISSIONING,NHS BARNSLEY CCG GP PRACTICE,27822998,"24,538.12"
Department of Health,NHS Barnsley CCG,30/06/2019,C&M-GMS QOF Achievement,PRC DELEGATED CO-COMMISSIONING,NHS BARNSLEY CCG GP PRACTICE,27822998,"29,778.95"
Department of Health,NHS Barnsley CCG,30/06/2019,C&M-GMS QOF Aspiration,PRC DELEGATED CO-COMMISSIONING,NHS BARNSLEY CCG GP PRACTICE,27822998,"6,065.73"
Department of Health,NHS Barnsley CCG,30/06/2019,C&M-PMS Contract Value,PRC DELEGATED CO-COMMISSIONING,NHS BARNSLEY CCG GP PRACTICE,27604657,"102,561.89"
Department of Health,NHS Barnsley CCG,30/06/2019,C&M-PMS DES Extended Hours Access,PRC DELEGATED CO-COMMISSIONING,NHS BARNSLEY CCG GP PRACTICE,27604657,"6,171.20"
Department of Health,NHS Barnsley CCG,30/06/2019,C&M-PMS PCO Other,PRC DELEGATED CO-COMMISSIONING,NHS BARNSLEY CCG GP PRACTICE,27604657,"7,910.00"
Department of Health,NHS Barnsley CCG,30/06/2019,C&M-PMS PCO Seniority,PRC DELEGATED CO-COMMISSIONING,NHS BARNSLEY CCG GP PRACTICE,27604657,"3,659.31"
Department of Health,NHS Barnsley CCG,30/06/2019,C&M-PMS Prem Rates,PRC DELEGATED CO-COMMISSIONING,NHS BARNSLEY CCG GP PRACTICE,27604657,"3,513.00"
Department of Health,NHS Barnsley CCG,30/06/2019,C&M-PMS Prem Water Rates,PRC DELEGATED CO-COMMISSIONING,NHS BARNSLEY CCG GP PRACTICE,27604657,"1,534.36"
Department of Health,NHS Barnsley CCG,30/06/2019,C&M-PMS QOF Achievement,PRC DELEGATED CO-COMMISSIONING,NHS BARNSLEY CCG GP PRACTICE,27604657,"50,019.35"
Department of Health,NHS Barnsley CCG,30/06/2019,C&M-PMS QOF Aspiration,PRC DELEGATED CO-COMMISSIONING,NHS BARNSLEY CCG GP PRACTICE,27604657,"11,217.47"
Department of Health,NHS Barnsley CCG,30/06/2019,C&M-GMS LES Medicine Management,COMMISSIONING SCHEMES,NHS BARNSLEY CCG GP PRACTICE,27766653,"68,178.00"
Department of Health,NHS Barnsley CCG,30/06/2019,C&M-APMS LES GP Comm Incentive Sch,COMMISSIONING SCHEMES,NHS BARNSLEY CCG GP PRACTICE,27856277,"21,604.50"
Department of Health,NHS Barnsley CCG,30/06/2019,C&M-PMS LES Referral Management,COMMISSIONING SCHEMES,NHS BARNSLEY CCG GP PRACTICE,27856277,"21,211.69"
Department of Health,NHS Barnsley CCG,30/06/2019,Clinical&Medical-Clinical Other,COMMISSIONING SCHEMES,NHS BARNSLEY CCG GP PRACTICE,27856277,"19,161.22"
Department of Health,NHS Barnsley CCG,30/06/2019,C&M-GMS LES Medicine Management,COMMISSIONING SCHEMES,NHS BARNSLEY CCG GP PRACTICE,27639503,"33,433.00"
Department of Health,NHS Barnsley CCG,30/06/2019,C&M-GMS Global Sum,PRC DELEGATED CO-COMMISSIONING,NHS BARNSLEY CCG GP PRACTICE,27823002,"49,781.17"
Department of Health,NHS Barnsley CCG,30/06/2019,C&M-GMS PCO Seniority,PRC DELEGATED CO-COMMISSIONING,NHS BARNSLEY CCG GP PRACTICE,27823002,986.68
Department of Health,NHS Barnsley CCG,30/06/2019,C&M-GMS Prem Notional Rent,PRC DELEGATED CO-COMMISSIONING,NHS BARNSLEY CCG GP PRACTICE,27823002,"2,750.00"
Department of Health,NHS Barnsley CCG,30/06/2019,C&M-GMS Prem Rates,PRC DELEGATED CO-COMMISSIONING,NHS BARNSLEY CCG GP PRACTICE,27823002,565.00
Department of Health,NHS Barnsley CCG,30/06/2019,C&M-GMS QOF Achievement,PRC DELEGATED CO-COMMISSIONING,NHS BARNSLEY CCG GP PRACTICE,27823002,"13,570.52"
Department of Health,NHS Barnsley CCG,30/06/2019,C&M-GMS QOF Aspiration,PRC DELEGATED CO-COMMISSIONING,NHS BARNSLEY CCG GP PRACTICE,27823002,"3,844.61"
Department of Health,NHS Barnsley CCG,30/06/2019,Cont Care- Prior Year Payments,CHC ADULT JOINT FUNDED,HEATHCOTES LTD,27553859,"30,560.09"
Department of Health,NHS Barnsley CCG,30/06/2019,C&M-PMS Contract Value,PRC DELEGATED CO-COMMISSIONING,NHS BARNSLEY CCG GP PRACTICE,27667986,"41,512.76"
Department of Health,NHS Barnsley CCG,30/06/2019,C&M-PMS DES Extended Hours Access,PRC DELEGATED CO-COMMISSIONING,NHS BARNSLEY CCG GP PRACTICE,27667986,"2,449.58"
Department of Health,NHS Barnsley CCG,30/06/2019,C&M-PMS GP Statutory Levy,PRC DELEGATED CO-COMMISSIONING,NHS BARNSLEY CCG GP PRACTICE,27667986,-171.90
Department of Health,NHS Barnsley CCG,30/06/2019,C&M-PMS Out of Hours Opt Outs,PRC DELEGATED CO-COMMISSIONING,NHS BARNSLEY CCG GP PRACTICE,27667986,14.40
Department of Health,NHS Barnsley CCG,30/06/2019,C&M-PMS PCO Seniority,PRC DELEGATED CO-COMMISSIONING,NHS BARNSLEY CCG GP PRACTICE,27667986,183.81
Department of Health,NHS Barnsley CCG,30/06/2019,C&M-PMS Prem Rates,PRC DELEGATED CO-COMMISSIONING,NHS BARNSLEY CCG GP PRACTICE,27667986,"3,500.00"
Department of Health,NHS Barnsley CCG,30/06/2019,C&M-PMS QOF Aspiration,PRC DELEGATED CO-COMMISSIONING,NHS BARNSLEY CCG GP PRACTICE,27667986,"4,070.72"
Department of Health,NHS Barnsley CCG,30/06/2019,C&M-PMS Voluntary Levy,PRC DELEGATED CO-COMMISSIONING,NHS BARNSLEY CCG GP PRACTICE,27667986,"-1,995.58"
Department of Health,NHS Barnsley CCG,30/06/2019,Soc Care-Bed-Based Int Care Servs,INTERMEDIATE CARE,HIGHSTONE MEWS CARE HOME,27553917,"37,656.00"
Department of Health,NHS Barnsley CCG,30/06/2019,Apprenticeship Levy Payable,BALANCE SHEET,HMRC,27673041,"1,037.00"
Department of Health,NHS Barnsley CCG,30/06/2019,Income tax <1Yr,BALANCE SHEET,HMRC,27673041,"67,852.00"
Department of Health,NHS Barnsley CCG,30/06/2019,Income tax <1Yr-Student Loans,BALANCE SHEET,HMRC,27673041,"1,381.00"
Department of Health,NHS Barnsley CCG,30/06/2019,National Insurance < 1 yr-NI- ERS,BALANCE SHEET,HMRC,27673041,"48,758.02"
Department of Health,NHS Barnsley CCG,30/06/2019,National Insurance < 1 yr-NI-EES,BALANCE SHEET,HMRC,27673041,"35,532.51"
Department of Health,NHS Barnsley CCG,30/06/2019,Statutory Mat Pay < 1 yr,BALANCE SHEET,HMRC,27673041,"-1,641.48"
Department of Health,NHS Barnsley CCG,30/06/2019,C&M-GMS LES Medicine Management,COMMISSIONING SCHEMES,NHS BARNSLEY CCG GP PRACTICE,27679179,"65,461.00"
Department of Health,NHS Barnsley CCG,30/06/2019,C&M-APMS LES GP Comm Incentive Sch,COMMISSIONING SCHEMES,NHS BARNSLEY CCG GP PRACTICE,27856295,"20,743.64"
Department of Health,NHS Barnsley CCG,30/06/2019,C&M-PMS LES Referral Management,COMMISSIONING SCHEMES,NHS BARNSLEY CCG GP PRACTICE,27856295,"20,366.48"
Department of Health,NHS Barnsley CCG,30/06/2019,Clinical&Medical-Clinical Other,COMMISSIONING SCHEMES,NHS BARNSLEY CCG GP PRACTICE,27856295,"11,480.65"
Department of Health,NHS Barnsley CCG,30/06/2019,C&M-GMS DES Extended Hours Access,PRC DELEGATED CO-COMMISSIONING,NHS BARNSLEY CCG GP PRACTICE,27823004,"5,718.53"
Department of Health,NHS Barnsley CCG,30/06/2019,C&M-GMS Global Sum,PRC DELEGATED CO-COMMISSIONING,NHS BARNSLEY CCG GP PRACTICE,27823004,"90,226.50"
Department of Health,NHS Barnsley CCG,30/06/2019,C&M-GMS PCO Other,PRC DELEGATED CO-COMMISSIONING,NHS BARNSLEY CCG GP PRACTICE,27823004,"7,356.00"
Department of Health,NHS Barnsley CCG,30/06/2019,C&M-GMS PCO Seniority,PRC DELEGATED CO-COMMISSIONING,NHS BARNSLEY CCG GP PRACTICE,27823004,"3,423.81"
Department of Health,NHS Barnsley CCG,30/06/2019,C&M-GMS Prem Healthcentre Rent,PRC DELEGATED CO-COMMISSIONING,NHS BARNSLEY CCG GP PRACTICE,27823004,"21,846.34"
Department of Health,NHS Barnsley CCG,30/06/2019,C&M-GMS Prem Notional Rent,PRC DELEGATED CO-COMMISSIONING,NHS BARNSLEY CCG GP PRACTICE,27823004,"1,466.67"
Department of Health,NHS Barnsley CCG,30/06/2019,C&M-GMS QOF Achievement,PRC DELEGATED CO-COMMISSIONING,NHS BARNSLEY CCG GP PRACTICE,27823004,"50,397.04"
Department of Health,NHS Barnsley CCG,30/06/2019,C&M-GMS QOF Aspiration,PRC DELEGATED CO-COMMISSIONING,NHS BARNSLEY CCG GP PRACTICE,27823004,"10,019.14"
Department of Health,NHS Barnsley CCG,30/06/2019,C&M-GMS LES Medicine Management,COMMISSIONING SCHEMES,NHS BARNSLEY CCG GP PRACTICE,27639485,"60,416.00"
Department of Health,NHS Barnsley CCG,30/06/2019,C&M-GMS LES Medicine Management,COMMISSIONING SCHEMES,NHS BARNSLEY CCG GP PRACTICE,27718247,"74,899.00"
Department of Health,NHS Barnsley CCG,30/06/2019,C&M-PMS Contract Value,PRC DELEGATED CO-COMMISSIONING,NHS BARNSLEY CCG GP PRACTICE,27604659,"50,661.33"
Department of Health,NHS Barnsley CCG,30/06/2019,C&M-PMS Out of Hours Opt Outs,PRC DELEGATED CO-COMMISSIONING,NHS BARNSLEY CCG GP PRACTICE,27604659,5.40
Department of Health,NHS Barnsley CCG,30/06/2019,C&M-PMS PCO Seniority,PRC DELEGATED CO-COMMISSIONING,NHS BARNSLEY CCG GP PRACTICE,27604659,"1,300.53"
Department of Health,NHS Barnsley CCG,30/06/2019,C&M-PMS Prem Healthcentre Rent,PRC DELEGATED CO-COMMISSIONING,NHS BARNSLEY CCG GP PRACTICE,27604659,"6,241.71"
Department of Health,NHS Barnsley CCG,30/06/2019,C&M-PMS Prem Notional Rent,PRC DELEGATED CO-COMMISSIONING,NHS BARNSLEY CCG GP PRACTICE,27604659,"3,666.67"
Department of Health,NHS Barnsley CCG,30/06/2019,C&M-PMS Prem Rates,PRC DELEGATED CO-COMMISSIONING,NHS BARNSLEY CCG GP PRACTICE,27604659,839.00
Department of Health,NHS Barnsley CCG,30/06/2019,C&M-PMS QOF Achievement,PRC DELEGATED CO-COMMISSIONING,NHS BARNSLEY CCG GP PRACTICE,27604659,"24,954.03"
Department of Health,NHS Barnsley CCG,30/06/2019,C&M-PMS QOF Aspiration,PRC DELEGATED CO-COMMISSIONING,NHS BARNSLEY CCG GP PRACTICE,27604659,"5,136.89"
Department of Health,NHS Barnsley CCG,30/06/2019,C&M-GMS LES Medicine Management,COMMISSIONING SCHEMES,NHS BARNSLEY CCG GP PRACTICE,27639275,"32,102.00"
Department of Health,NHS Barnsley CCG,30/06/2019,External Data Contracts,BUSINESS INFORMATICS,KIER BUSINESS SERVICES LTD,27575480,"13,467.00"
Department of Health,NHS Barnsley CCG,30/06/2019,External Data Contracts,COMMISSIONING SCHEMES,KIER BUSINESS SERVICES LTD,27575480,"14,391.00"
Department of Health,NHS Barnsley CCG,30/06/2019,Telecoms-Data lines,PRIMARY CARE IT,KIER BUSINESS SERVICES LTD,27575480,"47,150.00"
Department of Health,NHS Barnsley CCG,30/06/2019,C&M-PMS Contract Value,PRC DELEGATED CO-COMMISSIONING,NHS BARNSLEY CCG GP PRACTICE,27606729,"29,904.05"
Department of Health,NHS Barnsley CCG,30/06/2019,C&M-PMS DES Extended Hours Access,PRC DELEGATED CO-COMMISSIONING,NHS BARNSLEY CCG GP PRACTICE,27606729,"3,826.61"
Department of Health,NHS Barnsley CCG,30/06/2019,C&M-PMS Prem Notional Rent,PRC DELEGATED CO-COMMISSIONING,NHS BARNSLEY CCG GP PRACTICE,27606729,"4,333.33"
Department of Health,NHS Barnsley CCG,30/06/2019,C&M-PMS Prem Rates,PRC DELEGATED CO-COMMISSIONING,NHS BARNSLEY CCG GP PRACTICE,27606729,"1,300.00"
Department of Health,NHS Barnsley CCG,30/06/2019,C&M-PMS QOF Achievement,PRC DELEGATED CO-COMMISSIONING,NHS BARNSLEY CCG GP PRACTICE,27606729,"10,775.76"
Department of Health,NHS Barnsley CCG,30/06/2019,C&M-PMS QOF Aspiration,PRC DELEGATED CO-COMMISSIONING,NHS BARNSLEY CCG GP PRACTICE,27606729,"2,166.21"
Department of Health,NHS Barnsley CCG,30/06/2019,C&M-PMS Cost of Drugs -Dispensing,LOCAL ENHANCED SERVICES,NHS BARNSLEY CCG GP PRACTICE,27853431,"27,594.20"
Department of Health,NHS Barnsley CCG,30/06/2019,C&M-PMS Prof fees Dispensing,PRC DELEGATED CO-COMMISSIONING,NHS BARNSLEY CCG GP PRACTICE,27853431,"4,816.19"
Department of Health,NHS Barnsley CCG,30/06/2019,C&M-PMS Prsc Chrgs Cll&Rmttd by GPs,LOCAL ENHANCED SERVICES,NHS BARNSLEY CCG GP PRACTICE,27853431,"1,303.80"
Department of Health,NHS Barnsley CCG,30/06/2019,C&M-APMS Contract Value,PRC DELEGATED CO-COMMISSIONING,NHS BARNSLEY CCG GP PRACTICE,27667987,"19,517.87"
Department of Health,NHS Barnsley CCG,30/06/2019,C&M-APMS OOH Opt Outs,PRC DELEGATED CO-COMMISSIONING,NHS BARNSLEY CCG GP PRACTICE,27667987,-932.85
Department of Health,NHS Barnsley CCG,30/06/2019,C&M-APMS Prem Healthcentre Rent,PRC DELEGATED CO-COMMISSIONING,NHS BARNSLEY CCG GP PRACTICE,27667987,"5,220.90"
Department of Health,NHS Barnsley CCG,30/06/2019,C&M-PMS QOF Aspiration,PRC DELEGATED CO-COMMISSIONING,NHS BARNSLEY CCG GP PRACTICE,27667987,"1,724.79"
Department of Health,NHS Barnsley CCG,30/06/2019,Hcare Srv Rec NHS Trust-CQUIN,ACUTE COMMISSIONING,LEEDS TEACHING HOSPITALS NHS TRUST,27553853,"1,010.00"
Department of Health,NHS Barnsley CCG,30/06/2019,Hcare Srv Rec NHS Trust-Contract Baseline,ACUTE COMMISSIONING,LEEDS TEACHING HOSPITALS NHS TRUST,27553853,"97,982.00"
Department of Health,NHS Barnsley CCG,30/06/2019,Hcare Srv Rec NHS Trust-CQUIN,ACUTE COMMISSIONING,LEEDS TEACHING HOSPITALS NHS TRUST,27553887,"-1,399.87"
Department of Health,NHS Barnsley CCG,30/06/2019,Hcare Srv Rec NHS Trust-Contract Baseline,ACUTE COMMISSIONING,LEEDS TEACHING HOSPITALS NHS TRUST,27553887,"-61,870.66"
Department of Health,NHS Barnsley CCG,30/06/2019,Cont Care- Prior Year Payments,CHC ADULT FULLY FUNDED,MARIA MALLABAND CARE GROUP,27553845,"25,200.00"
Department of Health,NHS Barnsley CCG,30/06/2019,Hcare Srv Rec NHS Trust-CQUIN,ACUTE COMMISSIONING,MID YORKSHIRE HOSPITALS NHS TRUST,27553943,"1,354.00"
Department of Health,NHS Barnsley CCG,30/06/2019,Hcare Srv Rec NHS Trust-Contract Baseline,ACUTE COMMISSIONING,MID YORKSHIRE HOSPITALS NHS TRUST,27553943,"246,868.00"
Department of Health,NHS Barnsley CCG,30/06/2019,Clinical&Medical-Commercial Sector,ACUTE COMMISSIONING,ONEHEALTH GROUP,27575482,"138,084.91"
Department of Health,NHS Barnsley CCG,30/06/2019,Clinical&Medical-Commercial Sector,ACUTE COMMISSIONING,ONEHEALTH GROUP,27575484,"-60,756.12"
Department of Health,NHS Barnsley CCG,30/06/2019,Clinical&Medical-Commercial Sector,ACUTE COMMISSIONING,ONEHEALTH GROUP,27856346,"157,481.14"
Department of Health,NHS Barnsley CCG,30/06/2019,Computer Software/License,MEDICINES MANAGEMENT - CLINICAL,OPTUM HEALTH SOLUTIONS (UK) LTD,27802579,"70,735.41"
Department of Health,NHS Barnsley CCG,30/06/2019,Other Prepaymnts&Accrued Income>1yr,BALANCE SHEET,OPTUM HEALTH SOLUTIONS (UK) LTD,27802579,"14,147.08"
Department of Health,NHS Barnsley CCG,30/06/2019,C&M-GMS LES Medicine Management,COMMISSIONING SCHEMES,PENISTONE GROUP PRACTICE,27679174,"85,693.00"
Department of Health,NHS Barnsley CCG,31/05/2019,Hcare Srv Rec Fdtn Trust-CQUIN,MENTAL HEALTH CONTRACTS,ROTHERHAM DONCASTER & SOUTH HUMBER MENTAL HEALTH NHS FOUNDATION TRUST,27293664,235.50
Department of Health,NHS Barnsley CCG,31/05/2019,Hcare Srv Rec Fdtn Trust-Contract Baseline,MENTAL HEALTH CONTRACTS,ROTHERHAM DONCASTER & SOUTH HUMBER MENTAL HEALTH NHS FOUNDATION TRUST,27293664,"37,679.00"
Department of Health,NHS Barnsley CCG,30/06/2019,Hcare Srv Rec Fdtn Trust-CQUIN,COMMUNITY SERVICES,ROTHERHAM NHS FOUNDATION TRUST,27575437,530.00
Department of Health,NHS Barnsley CCG,30/06/2019,Hcare Srv Rec Fdtn Trust-Contract Baseline,COMMUNITY SERVICES,ROTHERHAM NHS FOUNDATION TRUST,27575437,"42,420.00"
Department of Health,NHS Barnsley CCG,30/06/2019,Hcare Srv Rec Fdtn Trust-Contract Baseline,ACUTE COMMISSIONING,ROTHERHAM NHS FOUNDATION TRUST,27575441,"412,564.00"
Department of Health,NHS Barnsley CCG,30/06/2019,C&M-GMS DES Extended Hours Access,PRC DELEGATED CO-COMMISSIONING,NHS BARNSLEY CCG GP PRACTICE,27825677,"3,773.88"
Department of Health,NHS Barnsley CCG,30/06/2019,C&M-GMS DES Learn Dsblty Hlth Chk,PRC DELEGATED CO-COMMISSIONING,NHS BARNSLEY CCG GP PRACTICE,27825677,560.00
Department of Health,NHS Barnsley CCG,30/06/2019,C&M-GMS Global Sum,PRC DELEGATED CO-COMMISSIONING,NHS BARNSLEY CCG GP PRACTICE,27825677,"62,289.13"
Department of Health,NHS Barnsley CCG,30/06/2019,C&M-GMS PCO Seniority,PRC DELEGATED CO-COMMISSIONING,NHS BARNSLEY CCG GP PRACTICE,27825677,"1,343.15"
Department of Health,NHS Barnsley CCG,30/06/2019,C&M-GMS Prem Notional Rent,PRC DELEGATED CO-COMMISSIONING,NHS BARNSLEY CCG GP PRACTICE,27825677,"8,873.23"
Department of Health,NHS Barnsley CCG,30/06/2019,C&M-GMS Prem Water Rates,PRC DELEGATED CO-COMMISSIONING,NHS BARNSLEY CCG GP PRACTICE,27825677,105.37
Department of Health,NHS Barnsley CCG,30/06/2019,C&M-GMS QOF Achievement,PRC DELEGATED CO-COMMISSIONING,NHS BARNSLEY CCG GP PRACTICE,27825677,"28,272.63"
Department of Health,NHS Barnsley CCG,30/06/2019,C&M-GMS QOF Aspiration,PRC DELEGATED CO-COMMISSIONING,NHS BARNSLEY CCG GP PRACTICE,27825677,"6,864.29"
Department of Health,NHS Barnsley CCG,31/05/2019,Hcare Srv Rec Fdtn Trust-CQUIN,ACUTE COMMISSIONING,SHEFFIELD CHILDRENS NHS FOUNDATION TRUST,27293616,"1,722.58"
Department of Health,NHS Barnsley CCG,31/05/2019,Hcare Srv Rec Fdtn Trust-Contract Baseline,ACUTE COMMISSIONING,SHEFFIELD CHILDRENS NHS FOUNDATION TRUST,27293616,"144,442.74"
Department of Health,NHS Barnsley CCG,30/06/2019,Hcare Srv Rec Fdtn Trust-Contract Baseline,ACUTE COMMISSIONING,SHEFFIELD TEACHING HOSPITALS NHS FOUNDATION TRUST,27553914,"43,891.00"
Department of Health,NHS Barnsley CCG,31/05/2019,Hcare Srv Rec Fdtn Trust-Contract Baseline,ACUTE COMMISSIONING,SHEFFIELD TEACHING HOSPITALS NHS FOUNDATION TRUST,27414505,"183,040.00"
Department of Health,NHS Barnsley CCG,31/05/2019,Hcare Srv Rec Fdtn Trust-Contract Baseline,ACUTE COMMISSIONING,SHEFFIELD TEACHING HOSPITALS NHS FOUNDATION TRUST,27414506,"1,923,125.00"
Department of Health,NHS Barnsley CCG,30/06/2019,Hcare Srv Rec Fdtn Trust-CQUIN,COMMUNITY SERVICES,SOUTH WEST YORKSHIRE PARTNERSHIP NHS FOUNDATION TRUST,27553886,"7,101.50"
Department of Health,NHS Barnsley CCG,30/06/2019,Hcare Srv Rec Fdtn Trust-CQUIN,LEARNING DIFFICULTIES,SOUTH WEST YORKSHIRE PARTNERSHIP NHS FOUNDATION TRUST,27553886,"1,089.50"
Department of Health,NHS Barnsley CCG,30/06/2019,Hcare Srv Rec Fdtn Trust-CQUIN,MENTAL HEALTH SERVICES - ADULTS,SOUTH WEST YORKSHIRE PARTNERSHIP NHS FOUNDATION TRUST,27553886,"12,122.50"
Department of Health,NHS Barnsley CCG,30/06/2019,Hcare Srv Rec Fdtn Trust-CQUIN,MENTAL HEALTH SERVICES - OLDER PEOPLE,SOUTH WEST YORKSHIRE PARTNERSHIP NHS FOUNDATION TRUST,27553886,"1,408.50"
Department of Health,NHS Barnsley CCG,30/06/2019,Hcare Srv Rec Fdtn Trust-Contract Baseline,COMMUNITY SERVICES,SOUTH WEST YORKSHIRE PARTNERSHIP NHS FOUNDATION TRUST,27553886,"1,136,201.00"
Department of Health,NHS Barnsley CCG,30/06/2019,Hcare Srv Rec Fdtn Trust-Contract Baseline,LEARNING DIFFICULTIES,SOUTH WEST YORKSHIRE PARTNERSHIP NHS FOUNDATION TRUST,27553886,"174,345.00"
Department of Health,NHS Barnsley CCG,30/06/2019,Hcare Srv Rec Fdtn Trust-Contract Baseline,MENTAL HEALTH SERVICES - ADULTS,SOUTH WEST YORKSHIRE PARTNERSHIP NHS FOUNDATION TRUST,27553886,"1,955,613.00"
Department of Health,NHS Barnsley CCG,30/06/2019,Hcare Srv Rec Fdtn Trust-Contract Baseline,MENTAL HEALTH SERVICES - OLDER PEOPLE,SOUTH WEST YORKSHIRE PARTNERSHIP NHS FOUNDATION TRUST,27553886,"225,376.00"
Department of Health,NHS Barnsley CCG,30/06/2019,Hcare Srv Rec Fdtn Trust-Non Contract,MENTAL HEALTH SERVICES - OLDER PEOPLE,SOUTH WEST YORKSHIRE PARTNERSHIP NHS FOUNDATION TRUST,27553886,"14,375.00"
Department of Health,NHS Barnsley CCG,30/06/2019,Hcare Srv Rec Fdtn Trust-CQUIN,COMMUNITY SERVICES,SOUTH WEST YORKSHIRE PARTNERSHIP NHS FOUNDATION TRUST,27656808,"3,814.00"
Department of Health,NHS Barnsley CCG,30/06/2019,Hcare Srv Rec Fdtn Trust-CQUIN,IMPROVING ACCESS TO PSYCHOLOGICAL THERAPIES,SOUTH WEST YORKSHIRE PARTNERSHIP NHS FOUNDATION TRUST,27656808,"1,266.00"
Department of Health,NHS Barnsley CCG,30/06/2019,Hcare Srv Rec Fdtn Trust-CQUIN,INTERMEDIATE CARE,SOUTH WEST YORKSHIRE PARTNERSHIP NHS FOUNDATION TRUST,27656808,"1,967.00"
Department of Health,NHS Barnsley CCG,30/06/2019,Hcare Srv Rec Fdtn Trust-CQUIN,LONG TERM CONDITIONS,SOUTH WEST YORKSHIRE PARTNERSHIP NHS FOUNDATION TRUST,27656808,947.00
Department of Health,NHS Barnsley CCG,30/06/2019,Hcare Srv Rec Fdtn Trust-Contract Baseline,COMMUNITY SERVICES,SOUTH WEST YORKSHIRE PARTNERSHIP NHS FOUNDATION TRUST,27656808,"610,226.00"
Department of Health,NHS Barnsley CCG,30/06/2019,Hcare Srv Rec Fdtn Trust-Contract Baseline,IMPROVING ACCESS TO PSYCHOLOGICAL THERAPIES,SOUTH WEST YORKSHIRE PARTNERSHIP NHS FOUNDATION TRUST,27656808,"202,499.00"
Department of Health,NHS Barnsley CCG,30/06/2019,Hcare Srv Rec Fdtn Trust-Contract Baseline,INTERMEDIATE CARE,SOUTH WEST YORKSHIRE PARTNERSHIP NHS FOUNDATION TRUST,27656808,"314,755.00"
Department of Health,NHS Barnsley CCG,30/06/2019,Hcare Srv Rec Fdtn Trust-Contract Baseline,LONG TERM CONDITIONS,SOUTH WEST YORKSHIRE PARTNERSHIP NHS FOUNDATION TRUST,27656808,"151,525.00"
Department of Health,NHS Barnsley CCG,30/06/2019,Hcare Srv Rec Fdtn Trust-Contract Baseline,LEARNING DIFFICULTIES,SOUTH WEST YORKSHIRE PARTNERSHIP NHS FOUNDATION TRUST,27656958,"37,417.00"
Department of Health,NHS Barnsley CCG,30/06/2019,Clinical&Medical-Voluntary Sector,CHILD AND ADOLESCENT MENTAL HEALTH,SOUTH YORKSHIRE EATING DISORDERS ASSOCIATION,27679168,"30,000.00"
Department of Health,NHS Barnsley CCG,30/06/2019,Clinical&Medical-Commercial Sector,NCAS/OATS,SPAMEDICA LTD,27575414,"88,321.39"
Department of Health,NHS Barnsley CCG,30/06/2019,Cont Care- Prior Year Payments,CHC ADULT FULLY FUNDED,SUN HEALTHCARE LTD,27694062,"32,681.25"
Department of Health,NHS Barnsley CCG,30/06/2019,Cont Care- Prior Year Payments,CHC ADULT FULLY FUNDED,SUN HEALTHCARE LTD,27694705,"-32,681.25"
Department of Health,NHS Barnsley CCG,30/06/2019,Cont Care-Learning Disab(<65),CHC ADULT JOINT FUNDED,VOYAGE CARE,27753923,"25,984.14"
Department of Health,NHS Barnsley CCG,30/06/2019,Cont Care-Learning Disab(<65),CHC ADULT JOINT FUNDED,VOYAGE CARE,27753938,"27,325.68"
Department of Health,NHS Barnsley CCG,30/06/2019,C&M-PMS Contract Value,PRC DELEGATED CO-COMMISSIONING,NHS BARNSLEY CCG GP PRACTICE,27604661,"74,967.03"
Department of Health,NHS Barnsley CCG,30/06/2019,C&M-PMS DES Minor Surgery,PRC DELEGATED CO-COMMISSIONING,NHS BARNSLEY CCG GP PRACTICE,27604661,468.82
Department of Health,NHS Barnsley CCG,30/06/2019,C&M-PMS PCO Seniority,PRC DELEGATED CO-COMMISSIONING,NHS BARNSLEY CCG GP PRACTICE,27604661,"1,572.26"
Department of Health,NHS Barnsley CCG,30/06/2019,C&M-PMS Prem Actual Rent,PRC DELEGATED CO-COMMISSIONING,NHS BARNSLEY CCG GP PRACTICE,27604661,319.38
Department of Health,NHS Barnsley CCG,30/06/2019,C&M-PMS Prem Healthcentre Rent,PRC DELEGATED CO-COMMISSIONING,NHS BARNSLEY CCG GP PRACTICE,27604661,"22,466.85"
Department of Health,NHS Barnsley CCG,30/06/2019,C&M-PMS QOF Achievement,PRC DELEGATED CO-COMMISSIONING,NHS BARNSLEY CCG GP PRACTICE,27604661,"26,194.89"
Department of Health,NHS Barnsley CCG,30/06/2019,C&M-PMS QOF Aspiration,PRC DELEGATED CO-COMMISSIONING,NHS BARNSLEY CCG GP PRACTICE,27604661,"6,461.55"
Department of Health,NHS Barnsley CCG,30/06/2019,C&M-GMS LES Medicine Management,COMMISSIONING SCHEMES,NHS BARNSLEY CCG GP PRACTICE,27679185,"48,974.00"
Department of Health,NHS Barnsley CCG,30/06/2019,C&M-GMS LES Medicine Management,COMMISSIONING SCHEMES,NHS BARNSLEY CCG GP PRACTICE,27639477,"51,973.00"
Department of Health,NHS Barnsley CCG,30/06/2019,C&M-PMS Contract Value,PRC DELEGATED CO-COMMISSIONING,NHS BARNSLEY CCG GP PRACTICE,27606727,"44,565.56"
Department of Health,NHS Barnsley CCG,30/06/2019,C&M-PMS DES Extended Hours Access,PRC DELEGATED CO-COMMISSIONING,NHS BARNSLEY CCG GP PRACTICE,27606727,"2,419.65"
Department of Health,NHS Barnsley CCG,30/06/2019,C&M-PMS DES Minor Surgery,PRC DELEGATED CO-COMMISSIONING,NHS BARNSLEY CCG GP PRACTICE,27606727,468.82
Department of Health,NHS Barnsley CCG,30/06/2019,C&M-PMS PCO Other,PRC DELEGATED CO-COMMISSIONING,NHS BARNSLEY CCG GP PRACTICE,27606727,"1,010.70"
Department of Health,NHS Barnsley CCG,30/06/2019,C&M-PMS Prem Rates,PRC DELEGATED CO-COMMISSIONING,NHS BARNSLEY CCG GP PRACTICE,27606727,"1,625.00"
Department of Health,NHS Barnsley CCG,30/06/2019,C&M-PMS QOF Achievement,PRC DELEGATED CO-COMMISSIONING,NHS BARNSLEY CCG GP PRACTICE,27606727,"18,780.46"
Department of Health,NHS Barnsley CCG,30/06/2019,C&M-PMS QOF Aspiration,PRC DELEGATED CO-COMMISSIONING,NHS BARNSLEY CCG GP PRACTICE,27606727,"4,097.25"
Department of Health,NHS Barnsley CCG,30/06/2019,C&M-GMS LES Medicine Management,COMMISSIONING SCHEMES,NHS BARNSLEY CCG GP PRACTICE,27718312,"28,465.00"
Department of Health,NHS Barnsley CCG,30/06/2019,Hcare Srv Rec NHS Trust-Contract Baseline,PATIENT TRANSPORT,YORKSHIRE AMBULANCE SERVICE NHS TRUST,27553918,"129,905.43"
Department of Health,NHS Barnsley CCG,30/06/2019,Hcare Srv Rec NHS Trust-Contract Baseline,AMBULANCE SERVICES,YORKSHIRE AMBULANCE SERVICE NHS TRUST,27553921,"728,818.00"
Department of Health,NHS Barnsley CCG,30/06/2019,Hcare Srv Rec NHS Trust-Contract Baseline,NHS 111,YORKSHIRE AMBULANCE SERVICE NHS TRUST,27553923,"65,235.31"
,,,,,,,"32,350,323.42"
